bitfinex/quotes_BTCUSD_20211001
["timestamp","ask_amount","ask_price","bid_price","bid_amount"]
[1633109332502,0.00131442,47471.0,47470.0,0.315923]
[1633109332703,0.00131442,47471.0,47470.0,0.89495254]
[1633109333101,0.00131442,47471.0,47470.0,1.10676154]
[1633109333305,0.21082897,47484.0,47483.0,0.06191606]
[1633109333575,0.0014926,47485.0,47484.0,0.003424]
[1633109333576,0.0002,47485.0,47484.0,0.003424]
[1633109333705,0.0002,47485.0,47484.0,0.34589493]
[1633109333905,0.90053695,47485.0,47484.0,0.2342881]
[1633109334103,0.00053695,47485.0,47484.0,0.022024]
[1633109334503,0.08470805,47485.0,47484.0,0.022024]
[1633109334702,0.08470805,47485.0,47484.0,0.02077247]
[1633109334901,0.00053695,47485.0,47484.0,0.02077247]
[1633109335500,0.00181311,47485.0,47484.0,0.02077247]
[1633109335705,0.03781311,47485.0,47484.0,0.02077247]
[1633109336101,0.03781311,47485.0,47484.0,0.02509958]
[1633109336704,0.03781311,47485.0,47484.0,0.02385929]
[1633109337103,0.00181311,47485.0,47484.0,0.02385929]
[1633109337705,0.22422784,47485.0,47484.0,0.02385929]
[1633109337904,0.44141984,47485.0,47484.0,0.02385929]
[1633109338707,2.34141984,47485.0,47484.0,0.0225265]
[1633109338907,0.52110807,47485.0,47484.0,0.0225265]
[1633109339107,0.48510807,47485.0,47484.0,0.0225265]
[1633109339709,0.52110807,47485.0,47484.0,0.0225265]
[1633109340307,0.52110807,47485.0,47484.0,0.00432711]
[1633109340913,0.52110807,47485.0,47484.0,0.00303804]
[1633109341107,0.48510807,47485.0,47481.0,0.16102209]
[1633109341309,0.217192,47484.0,47481.0,0.16102209]
[1633109341708,0.217192,47484.0,47482.0,0.00432725]
[1633109342116,0.0003129,47483.0,47482.0,0.00432725]
[1633109342307,0.2175049,47483.0,47482.0,0.00432725]
[1633109342907,0.2175049,47483.0,47482.0,0.00307392]
[1633109343711,0.2495049,47483.0,47482.0,0.00507392]
[1633109344910,0.2495049,47483.0,47482.0,0.00181767]
[1633109345109,0.2175049,47483.0,47482.0,0.00181767]
[1633109345710,0.2465049,47483.0,47482.0,0.00381767]
[1633109346510,0.0293129,47483.0,47482.0,0.002]
[1633109347110,0.0003129,47483.0,47481.0,0.47564274]
[1633109347510,0.00030087,47482.0,47481.0,0.47564274]
[1633109347709,0.0002,47487.0,47485.0,0.02541519]
[1633109347918,0.0002,47487.0,47486.0,0.21294596]
[1633109348112,0.0002,47487.0,47486.0,0.45637141]
[1633109348314,0.00026016,47487.0,47486.0,0.45637141]
[1633109348511,0.00026016,47487.0,47486.0,0.2308551]
[1633109348910,0.00026016,47487.0,47486.0,0.46080793]
[1633109349311,0.00026016,47487.0,47486.0,0.45952615]
[1633109349708,0.02526016,47487.0,47486.0,0.48652615]
[1633109350111,0.02526016,47487.0,47486.0,0.25657332]
[1633109350312,0.02526016,47487.0,47486.0,0.25604322]
[1633109351110,0.02526016,47487.0,47486.0,0.0456]
[1633109351311,0.00026016,47487.0,47486.0,0.01728075]
[1633109351711,0.02326016,47487.0,47486.0,0.04328075]
[1633109352110,0.00942599,47487.0,47486.0,0.04328075]
[1633109352515,0.00764944,47487.0,47486.0,0.04779392]
[1633109352711,0.00764944,47487.0,47486.0,0.25824092]
[1633109352914,0.00764944,47487.0,47486.0,0.48990779]
[1633109353113,0.00764944,47487.0,47486.0,0.46519546]
[1633109353313,0.19956184,47489.0,47486.0,0.77972939]
[1633109353712,0.024,47487.0,47486.0,0.80744172]
[1633109353914,0.024,47487.0,47486.0,0.57577485]
[1633109354311,0.024,47487.0,47486.0,0.25994985]
[1633109354712,0.024,47487.0,47486.0,0.49302312]
[1633109354911,0.024,47487.0,47486.0,0.25994985]
[1633109355117,0.0002,47488.0,47486.0,0.23094985]
[1633109355512,0.0002,47488.0,47486.0,0.01916325]
[1633109355713,0.0242,47488.0,47486.0,0.04516325]
[1633109357112,0.0002,47488.0,47486.0,0.01916325]
[1633109357316,0.0002,47488.0,47486.0,0.01465008]
[1633109357514,0.0002,47488.0,47486.0,0.01339872]
[1633109357721,0.0242,47488.0,47486.0,0.03839872]
[1633109358117,0.0242,47488.0,47487.0,0.00451292]
[1633109359117,0.217354,47488.0,47487.0,0.00451292]
[1633109359320,0.21862067,47488.0,47487.0,0.00451292]
[1633109359717,0.25262067,47488.0,47487.0,0.00322603]
[1633109361118,0.21862067,47488.0,47487.0,0.00322603]
[1633109361721,2.70162067,47488.0,47487.0,0.0019652]
[1633109362122,2.72022067,47488.0,47487.0,0.0019652]
[1633109362321,0.27022067,47488.0,47487.0,0.0019652]
[1633109362521,0.27022067,47488.0,47485.0,0.02541519]
[1633109362522,0.87022067,47488.0,47485.0,0.02541519]
[1633109362722,2.66842653,47486.0,47485.0,0.02541519]
[1633109362925,0.21842653,47486.0,47485.0,0.02541519]
[1633109363587,0.21842653,47486.0,47485.0,0.02974221]
[1633109363724,3.01638553,47486.0,47485.0,0.02847785]
[1633109363925,0.56638553,47486.0,47485.0,0.02847785]
[1633109364729,0.62016553,47486.0,47485.0,0.02847785]
[1633109365129,0.58816553,47486.0,47485.0,0.02847785]
[1633109365731,0.61916553,47486.0,47485.0,0.02847785]
[1633109365928,3.08776553,47486.0,47485.0,0.02715365]
[1633109366129,0.63776553,47486.0,47485.0,0.02715365]
[1633109367133,0.60676553,47486.0,47485.0,0.02715365]
[1633109367730,0.63776553,47486.0,47485.0,0.02715365]
[1633109367933,0.63776553,47486.0,47485.0,0.02585458]
[1633109368133,0.63776553,47486.0,47485.0,0.02152756]
[1633109369131,0.60676553,47486.0,47485.0,0.02585458]
[1633109369730,0.63876553,47486.0,47485.0,0.12585458]
[1633109369929,2.27152756,47485.0,47469.0,0.2933219]
[1633109370129,0.00134896,47471.0,47470.0,0.0005301]
[1633109370332,0.00134896,47471.0,47469.0,0.0005301]
[1633109370530,0.00134896,47471.0,47470.0,0.00018056]
[1633109371329,0.00134896,47471.0,47470.0,0.31612456]
[1633109371530,0.00134896,47471.0,47470.0,0.52665256]
[1633109371930,0.00834896,47471.0,47470.0,0.56165256]
[1633109372128,0.00827324,47471.0,47470.0,0.56165256]
[1633109373334,0.01184113,47471.0,47470.0,0.56165256]
[1633109373533,0.00356789,47471.0,47470.0,0.78485256]
[1633109373732,0.00356789,47471.0,47470.0,1.02704692]
[1633109373929,0.00356789,47471.0,47470.0,1.30524927]
[1633109374330,0.00384977,47471.0,47470.0,1.30524927]
[1633109374531,0.00028188,47471.0,47470.0,1.30524927]
[1633109375129,0.00028188,47471.0,47470.0,1.27024927]
[1633109375934,0.00028188,47471.0,47470.0,1.30624927]
[1633109376330,0.00028188,47471.0,47470.0,1.33067475]
[1633109376528,0.00028188,47471.0,47470.0,1.32887804]
[1633109376729,0.00028188,47471.0,47470.0,1.10567804]
[1633109377129,0.00028188,47471.0,47470.0,1.06967804]
[1633109377929,0.00028188,47471.0,47470.0,1.10667804]
[1633109378328,0.05378,47473.0,47470.0,1.10667804]
[1633109378532,0.00028188,47471.0,47470.0,1.08225256]
[1633109378729,0.00028188,47471.0,47470.0,1.082072]
[1633109378929,0.00384977,47471.0,47470.0,1.082072]
[1633109379130,0.00384977,47471.0,47470.0,1.045072]
[1633109379730,0.00384977,47471.0,47470.0,1.0456021]
[1633109379933,0.00384977,47471.0,47470.0,1.0816021]
[1633109380131,0.00384977,47471.0,47470.0,1.081072]
[1633109380132,0.00028188,47471.0,47470.0,1.081072]
[1633109380731,0.00028188,47471.0,47470.0,1.0816021]
[1633109380932,0.00028188,47471.0,47470.0,1.081072]
[1633109381135,0.00028188,47471.0,47470.0,1.045072]
[1633109381332,0.00028188,47471.0,47470.0,1.0456021]
[1633109381532,0.05191939,47472.0,47470.0,1.0456021]
[1633109381732,0.05191939,47472.0,47470.0,1.045072]
[1633109381931,0.05191939,47472.0,47471.0,0.00016852]
[1633109382131,0.05191939,47472.0,47471.0,0.22929552]
[1633109382332,0.05191939,47472.0,47471.0,0.18739552]
[1633109383933,0.05191939,47472.0,47471.0,0.22239552]
[1633109384332,0.0554872,47472.0,47471.0,0.22239552]
[1633109385132,0.0554872,47472.0,47471.0,0.18739552]
[1633109385533,0.05191939,47472.0,47471.0,0.18739552]
[1633109385737,0.05191939,47477.0,47471.0,0.18739552]
[1633109385934,0.05191939,47472.0,47471.0,0.0536]
[1633109386135,0.05191939,47472.0,47471.0,0.222392]
[1633109386340,0.05191939,47472.0,47471.0,0.22366842]
[1633109386733,0.05191939,47472.0,47471.0,0.22419852]
[1633109387133,0.05191939,47472.0,47471.0,0.50513352]
[1633109387936,0.05191939,47472.0,47471.0,0.53913352]
[1633109388138,0.05191939,47472.0,47471.0,0.53860342]
[1633109389136,0.05191939,47472.0,47471.0,0.50513352]
[1633109389938,0.0554872,47472.0,47471.0,0.53913352]
[1633109391141,0.05191939,47472.0,47471.0,0.50513352]
[1633109391942,0.05191939,47472.0,47471.0,0.53813352]
[1633109392145,0.29407374,47472.0,47471.0,0.033]
[1633109392350,0.30115548,47472.0,47471.0,0.033]
[1633109392842,0.51832348,47472.0,47471.0,0.033]
[1633109393041,0.7180768,47472.0,47471.0,0.033]
[1633109393241,0.7180768,47472.0,47462.0,1.0]
[1633109393242,0.87417649,47472.0,47462.0,1.0]
[1633109393608,0.10628085,47463.0,47460.0,0.316017]
[1633109393743,0.10628085,47463.0,47462.0,0.94808061]
[1633109393944,0.25631621,47465.0,47462.0,0.97018897]
[1633109394150,0.07132141,47466.0,47462.0,0.02210836]
[1633109394345,0.00120388,47466.0,47464.0,8.428e-05]
[1633109394542,0.00120388,47466.0,47465.0,7.224e-05]
[1633109395344,0.24405027,47466.0,47465.0,7.224e-05]
[1633109395543,0.46121827,47466.0,47465.0,7.224e-05]
[1633109395945,0.49321827,47466.0,47465.0,0.01607224]
[1633109396145,0.58458783,47466.0,47465.0,0.01607224]
[1633109397146,0.55258783,47466.0,47465.0,7.224e-05]
[1633109397947,0.58458783,47466.0,47465.0,7.224e-05]
[1633109399143,0.55258783,47466.0,47465.0,7.224e-05]
[1633109399950,0.55258783,47466.0,47460.0,0.3115814]
[1633109399951,0.28039612,47462.0,47460.0,0.3115814]
[1633109400151,0.21843649,47461.0,47460.0,0.3115814]
[1633109400348,0.23703649,47461.0,47460.0,0.99201105]
[1633109400545,0.22380627,47461.0,47460.0,0.3116416]
[1633109400747,0.44097427,47461.0,47460.0,0.96070648]
[1633109400952,0.22380627,47461.0,47460.0,0.96070648]
[1633109401347,0.53994427,47461.0,47460.0,0.96070648]
[1633109401548,0.23703649,47461.0,47460.0,0.96070648]
[1633109401748,0.217168,47461.0,47460.0,0.64912508]
[1633109401955,0.029,47461.0,47460.0,0.66312508]
[1633109403549,0.06322812,47462.0,47460.0,0.64912508]
[1633109403952,0.017,47461.0,47460.0,0.67712508]
[1633109404555,0.017,47461.0,47460.0,0.99314208]
[1633109405354,0.017,47461.0,47460.0,0.96514208]
[1633109405621,0.06322812,47462.0,47460.0,0.96514208]
[1633109405950,0.06322812,47462.0,47460.0,0.99914208]
[1633109407351,0.06322812,47462.0,47460.0,0.96514208]
[1633109407552,0.06322812,47462.0,47460.0,0.3160772]
[1633109407754,0.06322812,47462.0,47460.0,0.95857316]
[1633109407951,0.06322812,47462.0,47460.0,0.98957316]
[1633109408151,0.06322812,47462.0,47460.0,0.3470772]
[1633109408352,0.06322812,47462.0,47460.0,0.97758622]
[1633109408623,0.06322812,47462.0,47461.0,0.02446707]
[1633109409153,0.06322812,47462.0,47461.0,0.02557454]
[1633109409954,0.06322812,47462.0,47461.0,0.05757454]
[1633109411359,0.06322812,47462.0,47461.0,0.02557454]
[1633109411858,0.06322812,47462.0,47461.0,0.00110747]
[1633109411859,0.31871326,47462.0,47461.0,0.00110747]
[1633109412058,0.29882916,47462.0,47461.0,0.02910747]
[1633109412260,0.51464368,47462.0,47461.0,0.45582649]
[1633109412457,0.51464368,47462.0,47461.0,0.02910747]
[1633109412657,0.51464368,47462.0,47461.0,0.44582649]
[1633109413258,0.81474668,47462.0,47461.0,0.41782649]
[1633109413859,0.49864368,47462.0,47461.0,0.41782649]
[1633109414059,0.31382916,47462.0,47461.0,0.41782649]
[1633109414262,0.31139612,47462.0,47461.0,0.65329895]
[1633109414460,0.31139612,47462.0,47461.0,0.67773117]
[1633109414461,0.09422812,47462.0,47461.0,0.67773117]
[1633109414864,0.09422812,47462.0,47461.0,0.44225871]
[1633109415261,0.06322812,47462.0,47461.0,0.44225871]
[1633109416060,0.08022812,47462.0,47461.0,0.47225871]
[1633109416260,0.08022812,47462.0,47461.0,0.78824071]
[1633109417259,0.06322812,47462.0,47461.0,0.75824071]
[1633109418061,0.06322812,47462.0,47461.0,0.79324071]
[1633109418266,0.06322812,47462.0,47461.0,0.88282662]
[1633109418666,0.06322812,47462.0,47461.0,0.79324071]
[1633109419863,0.06322812,47462.0,47461.0,0.75824071]
[1633109420064,0.06322812,47462.0,47461.0,0.79124071]
[1633109421266,0.06322812,47462.0,47461.0,0.75824071]
[1633109421663,0.06322812,47462.0,47461.0,1.16430421]
[1633109421864,1.0134,47471.0,47462.0,0.03478188]
[1633109422066,2.1375,47475.0,47467.0,0.00126539]
[1633109422265,2.1375,47475.0,47468.0,0.22539251]
[1633109422464,0.00122977,47476.0,47472.0,0.00110747]
[1633109422672,0.0012038,47478.0,47473.0,0.02653924]
[1633109422864,0.0012038,47478.0,47474.0,1.9430034]
[1633109423064,0.00123708,47484.0,47475.0,0.02653976]
[1633109423864,0.22702241,47477.0,47475.0,0.02653976]
[1633109424065,0.22702241,47477.0,47476.0,0.24295093]
[1633109424464,0.22714277,47477.0,47476.0,0.24295093]
[1633109425066,0.00012036,47477.0,47476.0,0.24295093]
[1633109426067,0.2221599,47477.0,47476.0,0.24295093]
[1633109426268,0.2221599,47477.0,47476.0,0.00540865]
[1633109426735,0.2221599,47477.0,47475.0,0.315914]
[1633109427134,1.15010833,47476.0,47475.0,0.315914]
[1633109427335,0.00010833,47476.0,47475.0,0.315914]
[1633109427945,0.00010833,47476.0,47475.0,0.31702147]
[1633109428137,0.00010833,47476.0,47475.0,0.32502147]
[1633109428738,0.00010833,47476.0,47475.0,0.58802425]
[1633109428938,0.00010833,47476.0,47475.0,0.58855435]
[1633109429535,0.00010833,47476.0,47475.0,0.58055435]
[1633109429948,0.00010833,47476.0,47475.0,0.60955435]
[1633109430346,0.00010833,47476.0,47475.0,0.60902425]
[1633109430946,0.00010833,47476.0,47475.0,0.58258266]
[1633109431752,0.00010833,47476.0,47475.0,0.5589922]
[1633109431951,0.00010833,47476.0,47475.0,0.5879922]
[1633109432352,0.00010833,47476.0,47475.0,0.58258266]
[1633109433353,0.00010833,47476.0,47475.0,0.55358266]
[1633109433958,0.00010833,47476.0,47475.0,0.57999917]
[1633109434363,0.08057195,47484.0,47483.0,0.21048667]
[1633109434756,0.29783622,47484.0,47483.0,0.21048667]
[1633109437358,0.29783622,47484.0,47483.0,0.21589118]
[1633109438365,0.29783622,47484.0,47483.0,0.00540451]
[1633109438959,0.29783622,47484.0,47483.0,0.01057295]
[1633109440161,0.29783622,47484.0,47483.0,0.01168042]
[1633109442565,0.21726427,47484.0,47483.0,0.01168042]
[1633109443366,0.21726427,47484.0,47483.0,0.00627591]
[1633109443580,0.21726427,47484.0,47483.0,0.4368051]
[1633109443769,9.627e-05,47484.0,47483.0,0.33771237]
[1633109443971,9.627e-05,47484.0,47483.0,0.33824247]
[1633109444168,9.627e-05,47484.0,47483.0,0.34524247]
[1633109444371,9.627e-05,47484.0,47483.0,0.78847839]
[1633109444570,0.0002,47493.0,47489.0,0.03105779]
[1633109444768,0.0002,47493.0,47492.0,0.00128094]
[1633109444967,0.0002,47493.0,47492.0,0.45975799]
[1633109445565,0.0002,47493.0,47492.0,0.45922789]
[1633109446173,0.0002,47493.0,47492.0,0.49222789]
[1633109447366,0.0002,47493.0,47492.0,0.45922789]
[1633109447967,0.0002,47493.0,47492.0,0.45422789]
[1633109448167,0.0002,47493.0,47492.0,0.48422789]
[1633109448367,0.0002,47493.0,47492.0,0.48962707]
[1633109448773,0.0002,47493.0,47492.0,0.70742789]
[1633109448969,0.0002,47493.0,47492.0,0.48475799]
[1633109449168,0.00143609,47493.0,47492.0,0.31552789]
[1633109449368,0.00143609,47493.0,47492.0,0.29692789]
[1633109449566,0.00143609,47493.0,47492.0,0.26692789]
[1633109450168,0.00143609,47493.0,47492.0,0.29192789]
[1633109450568,0.00143609,47493.0,47492.0,0.29671653]
[1633109450769,0.00082541,47493.0,47492.0,0.29671653]
[1633109451175,0.00127073,47493.0,47492.0,0.29671653]
[1633109451972,0.00127073,47493.0,47492.0,0.27171653]
[1633109452173,0.00127073,47493.0,47492.0,0.02678864]
[1633109452571,0.00082748,47493.0,47492.0,1.60580046]
[1633109452777,0.0004,47507.0,47506.0,0.35118906]
[1633109452977,0.0004,47507.0,47506.0,0.9329938]
[1633109453174,0.00067666,47507.0,47506.0,1.1021609]
[1633109453374,0.00047666,47507.0,47506.0,2.06294874]
[1633109453773,0.00047666,47507.0,47506.0,2.29153963]
[1633109453981,0.0106,47509.0,47506.0,2.29153963]
[1633109454176,0.0106,47509.0,47507.0,0.45745331]
[1633109454376,0.01,47509.0,47508.0,0.93985869]
[1633109454577,0.0006,47512.0,47509.0,1.668624]
[1633109454775,0.0006,47512.0,47510.0,0.34364276]
[1633109454977,0.0505,47515.0,47510.0,1.43709311]
[1633109455177,0.0505,47515.0,47514.0,0.00122072]
[1633109455380,0.0505,47515.0,47514.0,0.0191301]
[1633109455577,0.0505,47515.0,47514.0,0.0186]
[1633109455578,0.0505962,47515.0,47514.0,0.0186]
[1633109456177,0.0505962,47515.0,47514.0,0.028]
[1633109456378,0.30621573,47515.0,47514.0,0.028]
[1633109457378,0.30121573,47515.0,47514.0,0.028]
[1633109457577,0.30121573,47515.0,47513.0,0.00478647]
[1633109457980,8.418e-05,47514.0,47513.0,0.00478647]
[1633109458179,8.418e-05,47514.0,47513.0,0.02978647]
[1633109459379,8.418e-05,47514.0,47513.0,0.03517322]
[1633109459983,8.418e-05,47514.0,47513.0,0.01017322]
[1633109460180,0.18789497,47514.0,47513.0,0.03817322]
[1633109460584,0.18912588,47514.0,47513.0,0.03817322]
[1633109460780,0.42489388,47514.0,47513.0,0.03817322]
[1633109461383,0.42489388,47514.0,47513.0,0.01017322]
[1633109462181,0.45689388,47514.0,47513.0,0.01017322]
[1633109463384,0.42489388,47514.0,47513.0,0.01017322]
[1633109464186,0.45589388,47514.0,47513.0,0.01017322]
[1633109464790,0.65589388,47514.0,47513.0,0.01017322]
[1633109465654,0.62489388,47514.0,47513.0,0.01017322]
[1633109466188,0.65789388,47514.0,47513.0,0.01017322]
[1633109467388,0.62489388,47514.0,47513.0,0.01017322]
[1633109468189,0.65689388,47514.0,47513.0,0.00517322]
[1633109468388,0.45689388,47514.0,47513.0,0.00517322]
[1633109468665,0.43829388,47514.0,47513.0,0.00517322]
[1633109469389,0.40506297,47514.0,47513.0,0.00517322]
[1633109470189,0.51459815,47514.0,47513.0,0.00517322]
[1633109470391,0.51459815,47514.0,47513.0,0.00744254]
[1633109471657,0.47859815,47514.0,47513.0,0.00744254]
[1633109471993,0.79555025,47514.0,47513.0,0.00744254]
[1633109472196,0.82855025,47514.0,47513.0,0.00744254]
[1633109473396,0.51282325,47514.0,47513.0,0.00744254]
[1633109473595,0.47982325,47514.0,47513.0,0.01222907]
[1633109474195,0.51282325,47514.0,47513.0,0.01222907]
[1633109474662,0.82855025,47514.0,47513.0,0.01222907]
[1633109474801,0.91159815,47514.0,47513.0,0.00722907]
[1633109475000,0.51159815,47514.0,47513.0,0.00722907]
[1633109475996,0.47859815,47514.0,47513.0,0.00722907]
[1633109476199,0.51259815,47514.0,47513.0,0.00722907]
[1633109476800,0.47831273,47514.0,47513.0,0.00722907]
[1633109477803,0.0008,47515.0,47513.0,0.00775917]
[1633109478004,0.0008,47515.0,47514.0,0.00124444]
[1633109478200,0.0008,47515.0,47514.0,0.46112688]
[1633109479403,0.0008,47515.0,47514.0,0.46059678]
[1633109479802,0.0008,47515.0,47514.0,0.46416134]
[1633109480203,0.0248,47515.0,47514.0,0.48916134]
[1633109481401,0.0248,47515.0,47514.0,0.68789144]
[1633109481602,0.0012,47516.0,47514.0,0.68789144]
[1633109481802,0.0008,47528.0,47516.0,0.210451]
[1633109482202,0.23806028,47520.0,47517.0,0.07878299]
[1633109482400,0.23806028,47520.0,47518.0,0.22824647]
[1633109482902,6.012e-05,47519.0,47518.0,0.22824647]
[1633109484305,0.02906012,47519.0,47518.0,0.25224647]
[1633109484705,0.02906012,47519.0,47518.0,0.43083447]
[1633109485306,0.02906012,47519.0,47518.0,0.43439873]
[1633109485505,6.012e-05,47519.0,47518.0,0.41039873]
[1633109486306,0.03006012,47519.0,47518.0,0.43439873]
[1633109487506,6.012e-05,47519.0,47518.0,0.41039873]
[1633109487908,6.012e-05,47519.0,47518.0,0.18215226]
[1633109488308,0.02906012,47519.0,47518.0,0.20615226]
[1633109489708,6.012e-05,47519.0,47518.0,0.18215226]
[1633109489908,6.012e-05,47519.0,47518.0,0.47950192]
[1633109490312,0.03006012,47519.0,47518.0,0.50350192]
[1633109491107,0.001,47522.0,47519.0,0.178584]
[1633109491308,0.001,47522.0,47518.0,0.02756426]
[1633109491509,0.001,47522.0,47518.0,0.00356426]
[1633109491910,0.217133,47521.0,47518.0,0.00356426]
[1633109492112,0.001,47522.0,47518.0,0.00356426]
[1633109492312,0.029,47522.0,47518.0,0.02256426]
[1633109492780,0.19087714,47521.0,47518.0,0.02256426]
[1633109494177,0.21887714,47521.0,47518.0,0.02456426]
[1633109495381,0.21887714,47521.0,47518.0,0.25593389]
[1633109495583,0.19087714,47521.0,47518.0,0.23493389]
[1633109496183,0.21887714,47521.0,47518.0,0.25970097]
[1633109496380,0.21887714,47521.0,47518.0,0.23373088]
[1633109497179,0.2177173,47521.0,47518.0,0.02476708]
[1633109497582,0.1897173,47521.0,47518.0,0.00376708]
[1633109498185,0.2197173,47521.0,47518.0,0.02476708]
[1633109499581,0.1897173,47521.0,47518.0,0.00376708]
[1633109500381,0.2197173,47521.0,47518.0,0.03176708]
[1633109500988,0.03,47521.0,47518.0,0.2547846]
[1633109501582,0.001,47522.0,47518.0,0.22856673]
[1633109501984,0.001,47522.0,47518.0,0.54418573]
[1633109501985,0.22803262,47520.0,47518.0,0.54418573]
[1633109502190,0.22803262,47520.0,47518.0,0.22856673]
[1633109502384,0.001,47522.0,47518.0,0.25656673]
[1633109503586,0.001,47522.0,47518.0,0.22856673]
[1633109504387,0.001,47522.0,47518.0,0.25656673]
[1633109505190,0.001,47522.0,47518.0,0.03354921]
[1633109505590,0.001,47522.0,47518.0,0.00554921]
[1633109505790,0.001,47522.0,47519.0,0.315609]
[1633109506390,0.001,47522.0,47519.0,0.342609]
[1633109507192,0.001,47522.0,47520.0,0.00554889]
[1633109508394,0.001,47522.0,47520.0,0.03254889]
[1633109510195,0.001,47522.0,47520.0,0.00554889]
[1633109510395,0.001,47522.0,47520.0,0.03254889]
[1633109510798,0.001,47522.0,47521.0,0.38159022]
[1633109511000,0.001,47522.0,47521.0,0.38161603]
[1633109511396,0.001,47522.0,47521.0,0.56019103]
[1633109512398,0.001,47522.0,47521.0,0.58919103]
[1633109512598,0.001,47522.0,47521.0,0.59473929]
[1633109512798,0.001,47522.0,47521.0,0.59526939]
[1633109513708,0.001,47522.0,47521.0,0.56626939]
[1633109513898,0.001,47522.0,47521.0,0.56573929]
[1633109514299,0.001,47522.0,47521.0,0.43574862]
[1633109514899,0.001,47522.0,47521.0,0.55541245]
[1633109515500,0.001,47522.0,47521.0,0.55594255]
[1633109515703,0.001,47522.0,47521.0,0.52694255]
[1633109516100,0.001,47522.0,47521.0,0.52641245]
[1633109516305,0.001,47522.0,47521.0,0.55541245]
[1633109516705,0.001,47522.0,47521.0,0.54986419]
[1633109517504,0.001,47522.0,47521.0,0.55039429]
[1633109517704,0.001,47522.0,47521.0,0.52139429]
[1633109518102,0.001,47522.0,47521.0,0.52641245]
[1633109518303,0.001,47522.0,47521.0,0.33378709]
[1633109518906,0.001,47522.0,47521.0,0.21412326]
[1633109519103,0.0022,47529.0,47522.0,0.9]
[1633109519305,0.0022,47529.0,47524.0,0.21039]
[1633109519703,7.215e-05,47525.0,47524.0,0.21039]
[1633109519905,7.215e-05,47525.0,47524.0,0.388948]
[1633109520303,7.215e-05,47525.0,47524.0,0.415948]
[1633109520703,7.215e-05,47525.0,47524.0,0.96653699]
[1633109521104,7.215e-05,47525.0,47524.0,0.731527]
[1633109523707,7.215e-05,47525.0,47524.0,0.704527]
[1633109524308,7.215e-05,47525.0,47524.0,0.731527]
[1633109525313,7.215e-05,47525.0,47524.0,0.96608415]
[1633109525779,7.215e-05,47525.0,47524.0,0.93908415]
[1633109526383,7.215e-05,47525.0,47524.0,0.96608415]
[1633109527779,7.215e-05,47525.0,47524.0,0.93908415]
[1633109528379,7.215e-05,47525.0,47524.0,0.96608415]
[1633109528782,7.215e-05,47525.0,47524.0,0.73631235]
[1633109529385,7.215e-05,47525.0,47524.0,0.42073335]
[1633109529779,7.215e-05,47525.0,47524.0,0.39373335]
[1633109530380,7.215e-05,47525.0,47524.0,0.64993367]
[1633109531782,7.215e-05,47525.0,47524.0,0.39373335]
[1633109532385,7.215e-05,47525.0,47524.0,0.42073335]
[1633109532584,7.215e-05,47525.0,47524.0,0.64311084]
[1633109532981,7.215e-05,47525.0,47524.0,0.42073335]
[1633109533784,7.215e-05,47525.0,47524.0,0.39373335]
[1633109534385,7.215e-05,47525.0,47524.0,0.42073335]
[1633109535784,7.215e-05,47525.0,47524.0,0.39373335]
[1633109536384,7.215e-05,47525.0,47524.0,0.42173335]
[1633109537786,7.215e-05,47525.0,47524.0,0.39373335]
[1633109538386,7.215e-05,47525.0,47524.0,0.42173335]
[1633109539990,7.215e-05,47525.0,47524.0,0.39373335]
[1633109540391,7.215e-05,47525.0,47524.0,0.42173335]
[1633109541791,7.215e-05,47525.0,47524.0,0.39373335]
[1633109542395,7.215e-05,47525.0,47524.0,0.42073335]
[1633109543794,7.215e-05,47525.0,47524.0,0.39373335]
[1633109544195,7.215e-05,47525.0,47524.0,0.39426345]
[1633109544396,7.215e-05,47525.0,47524.0,0.42126345]
[1633109544796,7.215e-05,47525.0,47524.0,0.42073335]
[1633109545006,0.00207215,47529.0,47524.0,1.10057763]
[1633109545199,0.0008,47530.0,47529.0,0.6]
[1633109545499,0.0004,47532.0,47531.0,0.7]
[1633109545698,0.00156194,47533.0,47532.0,1.8]
[1633109545895,0.00156194,47533.0,47532.0,0.19841776]
[1633109546095,0.00156194,47533.0,47532.0,0.50159619]
[1633109546299,0.001,47536.0,47534.0,2.4]
[1633109546497,1.89e-06,47537.0,47536.0,1.27973966]
[1633109546696,0.0004,47538.0,47536.0,1.30016959]
[1633109546896,0.0004,47538.0,47537.0,0.66076353]
[1633109547096,0.0004,47538.0,47537.0,0.67989363]
[1633109547297,0.0006,47543.0,47540.0,0.525644]
[1633109547503,0.0006,47543.0,47542.0,0.0012304]
[1633109547695,0.0006,47543.0,47542.0,0.46415362]
[1633109547896,0.0006601,47543.0,47542.0,0.46415362]
[1633109548496,0.0006601,47543.0,47542.0,0.71635362]
[1633109548897,0.0006,47544.0,47543.0,0.75]
[1633109549099,0.0006,47544.0,47543.0,0.45080288]
[1633109549298,0.0006,47544.0,47543.0,0.45133298]
[1633109549498,0.0006,47544.0,47543.0,0.6757595]
[1633109549699,0.0006,47544.0,47543.0,0.67932187]
[1633109550498,0.0006,47544.0,47543.0,0.71432187]
[1633109551097,0.0006,47544.0,47543.0,0.71845462]
[1633109551699,0.0006,47544.0,47543.0,0.68345462]
[1633109552501,0.0006,47544.0,47543.0,0.71845462]
[1633109553103,0.0006,47544.0,47543.0,1.0732381]
[1633109553302,0.0006,47544.0,47543.0,0.7232381]
[1633109553703,0.0006,47544.0,47543.0,0.6882381]
[1633109554508,0.0006,47544.0,47543.0,0.7232381]
[1633109555103,0.0006,47544.0,47543.0,0.71910535]
[1633109555706,0.0006,47544.0,47543.0,0.20664337]
[1633109556106,0.0006,47544.0,47543.0,0.43207001]
[1633109556508,0.0006,47544.0,47543.0,0.23964337]
[1633109556707,0.0006,47544.0,47543.0,0.24377612]
[1633109557105,0.0006,47544.0,47543.0,0.47315417]
[1633109557815,0.0006,47544.0,47543.0,0.1909496]
[1633109558015,0.0006,47544.0,47543.0,0.0124786]
[1633109558409,0.0006,47544.0,47543.0,0.04123075]
[1633109560009,0.0006,47544.0,47543.0,0.01123075]
[1633109560414,0.0006,47544.0,47543.0,0.036098]
[1633109561818,0.0006,47544.0,47543.0,0.007098]
[1633109562214,0.0006,47544.0,47543.0,0.01123075]
[1633109562414,0.0006,47544.0,47543.0,0.04323075]
[1633109564015,0.0006,47544.0,47543.0,0.01123075]
[1633109564415,0.0006,47544.0,47543.0,0.04023075]
[1633109564682,0.0006,47544.0,47543.0,0.04147854]
[1633109565816,0.0006,47544.0,47543.0,0.03734579]
[1633109566016,0.0006,47544.0,47543.0,0.00834579]
[1633109566417,0.0006,47544.0,47543.0,0.03634579]
[1633109567419,0.0006,47544.0,47543.0,0.03156237]
[1633109567695,0.20876663,47539.0,47537.0,0.1493005]
[1633109567824,0.20876663,47539.0,47521.0,0.5802]
[1633109567825,0.45975715,47538.0,47521.0,0.5802]